[Event "French-ch U16-U18 2024"]
[Site "Agen"]
[Date "2024.04.15"]
[Round "3.4"]
[White "Sumarriva Paulin, Jade"]
[Black "Chevillon, Manon"]
[Result "1/2-1/2"]
[ECO "C55"]
[WhiteElo "1780"]
[BlackElo "1737"]
[Annotator "NA RC"]
[PlyCount "87"]
[EventDate "2024.04.14"]
[EventType "swiss"]
[EventCountry "FRA"]
[SourceTitle "playchess.com"]
[Source "ChessBase"]
[SourceQuality "1"]
[TimeControl "5400+30"]

1. e4 {[%emt 0:00:02]} e5 {[%emt 0:00:19]} 2. Nf3 {[%emt 0:00:04]} Nc6 {[%emt 0:00:15]} 3. Bc4 {[%emt 0:00:06]} Nf6 {[%emt 0:00:46]} 4. d3 {[%emt 0:00:19]} Be7 {[%emt 0:01:12]} 5. c3 {[%emt 0:01:40]} O-O {[%emt 0:03:43]} 6. O-O {[%emt 0:01:45]} d5 {[%emt 0:07:15]} 7. exd5 {[%emt 0:01:09]} Nxd5 {[%emt 0:00:49]} 8. Re1 {[%emt 0:02:25]} Bf6 {[%emt 0:03:17]} 9. Nbd2 {[%emt 0:08:12]} a6 {[%emt 0:07:21]} 10. Ne4 {[%emt 0:03:43]} Be7 {[%emt 0:05:15]} 11. d4 {[%emt 0:12:42]} Nb6 {[%emt 0:06:01]} 12. Bb3 {[%emt 0:02:24]} exd4 {[%emt 0:12:53]} 13. Nxd4 {[%emt 0:02:10]} Nxd4 {[%emt 0:12:41]} 14. cxd4 {[%emt 0:06:21]} Nd5 {[%emt 0:02:34]} 15. Qh5 {[%emt 0:09:12]} Nf6 {[%emt 0:04:24]} 16. Qe5 {[%emt 0:08:31]} Ng4 {[%emt 0:11:24]} 17. Qd5 {[%emt 0:08:43]} Qxd5 {[%emt 0:01:21]} 18. Bxd5 {[%emt 0:00:06]} Nf6 {[%emt 0:01:30]} 19. Bb3 {[%emt 0:01:53]} Nxe4 {[%emt 0:02:09]} 20. Rxe4 {[%emt 0:00:06]} Bf6 {[%emt 0:01:09]} 21. Bf4 {[%emt 0:08:57]} Bf5 {[%emt 0:01:12]} 22. Re2 {[%emt 0:00:21]} Bxd4 {[%emt 0:03:03]} 23. Bxc7 {[%emt 0:00:58]} Rfe8 {[%emt 0:01:50]} 24. Rae1 {[%emt 0:10:23]} Rxe2 {[%emt 0:03:33]} 25. Rxe2 {[%emt 0:00:05]} h6 {[%emt 0:05:17]} 26. Bd5 {[%emt 0:09:05]} Be6 {[%emt 0:01:14]} 27. Bxe6 {[%emt 0:00:28]} fxe6 {[%emt 0:00:09]} 28. Rxe6 {[%emt 0:01:48]} Rc8 {[%emt 0:01:01]} 29. Bf4 {[%emt 0:00:45]} Bxb2 {[%emt 0:00:35]} 30. Rb6 {[%emt 0:00:32]} Be5 {[%emt 0:00:44]} 31. Be3 {[%emt 0:00:23]} Bd4 {[%emt 0:00:30]} 32. Rxb7 {[%emt 0:00:26]} Bxe3 {[%emt 0:00:12]} 33. fxe3 {[%emt 0:00:00]} Rc1+ {[%emt 0:00:10]} 34. Kf2 {[%emt 0:00:05]} Rc2+ {[%emt 0:00:11]} 35. Kf3 {[%emt 0:00:04]} Rxa2 {[%emt 0:00:28]} 36. h4 {[%emt 0:00:40]} a5 {[%emt 0:00:53]} 37. e4 {[%emt 0:01:04]} a4 {[%emt 0:00:46]} 38. Ra7 {[%emt 0:00:53]} a3 {[%emt 0:00:25]} 39. e5 {[%emt 0:00:12]} Kf8 {[%emt 0:00:55]} 40. e6 {[%emt 0:00:27]} Ra1 {[%emt 0:00:30]} 41. Kf2 {[%emt 0:01:10]} Ra2+ {[%emt 0:00:28]} 42. Kf3 {[%emt 0:00:18]} Ra1 {[%emt 0:00:22]} 43. Kf2 {[%emt 0:00:37]} Ra2+ {[%emt 0:00:33]} 44. Kf3 {[%emt 0:00:06]} 1/2-1/2

[Event "French-ch U16-U18 2024"]
[Site "Agen"]
[Date "2024.04.15"]
[Round "3.5"]
[White "Benhadid, Jazzmine"]
[Black "Paralieu, Emma"]
[Result "0-1"]
[ECO "C47"]
[WhiteElo "1721"]
[BlackElo "1775"]
[Annotator "NA RC"]
[PlyCount "58"]
[EventDate "2024.04.14"]
[EventType "swiss"]
[EventCountry "FRA"]
[SourceTitle "playchess.com"]
[Source "ChessBase"]
[SourceQuality "1"]
[TimeControl "5400+30"]

1. e4 {[%emt 0:00:03]} e5 {[%emt 0:00:11]} 2. Nf3 {[%emt 0:00:05]} Nc6 {[%emt 0:00:06]} 3. Nc3 {[%emt 0:00:06]} Nf6 {[%emt 0:00:24]} 4. d4 {[%emt 0:00:06]} exd4 {[%emt 0:00:29]} 5. Nxd4 {[%emt 0:00:06]} Bb4 {[%emt 0:00:30]} 6. Nxc6 {[%emt 0:00:16]} bxc6 {[%emt 0:00:02]} 7. Bd3 {[%emt 0:00:07]} d5 {[%emt 0:00:28]} 8. exd5 {[%emt 0:00:17]} cxd5 {[%emt 0:00:02]} 9. O-O {[%emt 0:00:19]} O-O {[%emt 0:00:11]} 10. Bg5 {[%emt 0:00:24]} c6 {[%emt 0:00:44]} 11. Qf3 {[%emt 0:00:33]} Bd6 {[%emt 0:01:48]} 12. Ne2 {[%emt 0:06:24]} Bd7 {[%emt 0:23:17]} 13. Rfe1 {[%emt 0:11:51]} Rb8 {[%emt 0:01:52]} 14. b3 {[%emt 0:00:22]} Be5 {[%emt 0:06:03]} 15. Rad1 {[%emt 0:01:52]} h6 {[%emt 0:09:27]} 16. Bf4 {[%emt 0:02:12]} Bxf4 {[%emt 0:02:05]} 17. Qxf4 {[%emt 0:00:09]} Re8 {[%emt 0:02:23]} 18. Nd4 {[%emt 0:12:18]} Qa5 {[%emt 0:02:28]} 19. Rxe8+ {[%emt 0:00:48]} Rxe8 {[%emt 0:00:02]} 20. a4 {[%emt 0:04:14]} Re1+ {[%emt 0:17:52]} 21. Rxe1 {[%emt 0:00:05]} Qxe1+ {[%emt 0:00:05]} 22. Bf1 {[%emt 0:00:03]} Ne4 {[%emt 0:01:09]} 23. Qe3 {[%emt 0:19:39]} Qd1 {[%emt 0:03:21]} 24. Qe2 {[%emt 0:01:43]} Qxd4 {[%emt 0:00:32]} 25. h3 {[%emt 0:01:21]} Bf5 {[%emt 0:03:12]} 26. g4 {[%emt 0:01:50]} Bg6 {[%emt 0:01:07]} 27. Bg2 {[%emt 0:00:27]} Nc3 {[%emt 0:05:19]} 28. Qe8+ {[%emt 0:04:13]} Kh7 {[%emt 0:00:14]} 29. Bf1 {[%emt 0:00:36]} Ne4 {[%emt 0:00:57]} 0-1

[Event "French-ch U16-U18 2024"]
[Site "Agen"]
[Date "2024.04.15"]
[Round "3.6"]
[White "Kuhn, Clement"]
[Black "Bedhouche, Rayan"]
[Result "1-0"]
[ECO "C81"]
[WhiteElo "2349"]
[BlackElo "1988"]
[Annotator "TA"]
[PlyCount "65"]
[EventDate "2024.04.14"]
[EventType "swiss"]
[EventCountry "FRA"]
[SourceTitle "playchess.com"]
[Source "ChessBase"]
[SourceQuality "1"]
[TimeControl "5400+30"]

{[%evp 20,65,9,17,45,50,89,102,115,100,127,127,142,143,137,145,136,135,114,109,205,219,239,260,314,306,308,315,304,308,371,292,352,344,346,333,516,418,420,416,408,420,420,404,434,434,420,420]} 1. e4 {[%emt 0:00:16]} e5 {[%emt 0:00:48]} 2. Nf3 {[%emt 0:00:21]} Nc6 {[%emt 0:00:30]} 3. Bb5 {[%emt 0:00:04][%cal Bf1b5,Bb5a4,Ba4b3][%mdl 32]} a6 {[%emt 0:01:00]} 4. Ba4 {[%emt 0:00:02]} Nf6 {[%emt 0:01:38]} 5. O-O {[%emt 0:00:43]} Nxe4 {[%emt 0:01:06]} 6. d4 {[%emt 0:00:17]} b5 {[%emt 0:00:09]} 7. Bb3 {[%emt 0:00:01]} d5 {[%emt 0:00:06]} 8. dxe5 {[%emt 0:00:04]} Be6 {[%emt 0:00:03]} 9. Qe2 {[%emt 0:00:40]} Nc5 {[%emt 0:12:30]} 10. Rd1 {[%emt 0:03:23]} Nxb3 {[%emt 0:04:42]} 11. axb3 {[%emt 0:00:02][%cal Oc2c4]} Bc5 {[%emt 0:03:50]} 12. Bg5 {[%emt 0:05:20]} Qc8 {[%emt 0:02:33]} 13. Nc3 {[%emt 0:02:08]} h6 {[%emt 0:05:07] White is better.} 14. Be3 {[%emt 0:06:48]} Bxe3 {[%emt 0:01:18]} 15. Qxe3 {[%emt 0:00:02]} Ne7 {[%emt 0:00:10] [#]} 16. Qc5 $1 {[%emt 0:00:38]} c6 {[%emt 0:03:02]} 17. Nd4 $36 {[%emt 0:07:50][%mdl 2048] White has strong initiative.} Qb7 {[%emt 0:02:45]} 18. Ra5 {[%emt 0:09:43] White is much more active.} O-O {[%emt 0:08:37]} 19. Rda1 {[%emt 0:01:22]} Ng6 {[%emt 0:05:09]} (19... Rfe8 $16 {was necessary.}) 20. Qxc6 $18 {[%emt 0:07:26]} (20. Nxc6 $2 {perishes.} Rfc8 21. f4 Rxc6 $19 (21... Qxc6 $2 22. Qxc6 Rxc6 23. Nxb5 $19)) 20... Qxc6 {[%emt 0:05:32]} 21. Nxc6 {[%emt 0:00:05] Excellent horsemanship.} Rfc8 {[%emt 0:00:12]} 22. Rxa6 {[%emt 0:01:26]} Rxa6 {[%emt 0:00:59]} 23. Rxa6 {[%emt 0:00:01]} Bd7 {[%emt 0:00:16]} 24. Nd4 {[%emt 0:06:32]} Re8 {[%emt 0:08:56][%cal Bc8e8,Be8e1,Be1b1,Bb1b2][%mdl 32]} 25. Nxd5 {[%emt 0:02:13] f4 would now be deadly.} Nxe5 {[%emt 0:02:30]} 26. h3 {[%emt 0:01:51]} Ng6 {[%emt 0:04:18]} 27. Rd6 {[%emt 0:03:05]} Re1+ {[%emt 0:02:23]} 28. Kh2 {[%emt 0:00:01]} Be6 {[%emt 0:00:07]} 29. Ne3 {[%emt 0:03:45]} Rb1 {[%emt 0:03:58]} 30. Nxe6 {[%emt 0:05:04]} ({Don't do} 30. Nxb5 Rxb2 31. Nd4 Kh8 32. Nxe6 fxe6 33. Rxe6 Nf4 $18) 30... fxe6 {[%emt 0:00:10]} 31. Rxe6 {[%emt 0:00:03]} Kf7 {[%emt 0:00:09]} 32. Rb6 {[%emt 0:00:07]} Rxb2 {[%emt 0:00:13]} 33. Rxb5 {[%emt 0:00:02] Black did not feel at home in the position after the opening.   Weighted Error Value: White=0.05 (flawless) /Black=0.30.  Mistake:       	---       	Black=1      Inaccurate:     	---       	Black=1      OK:         	White=13    	Black=6      Best:        	White=2     	Black=1} 1-0

[Event "French-ch U16-U18 2024"]
[Site "Agen"]
[Date "2024.04.15"]
[Round "3.7"]
[White "Munier, Alexis"]
[Black "Breuil, Tristan"]
[Result "1/2-1/2"]
[ECO "B51"]
[WhiteElo "2003"]
[BlackElo "2281"]
[Annotator "TA"]
[PlyCount "372"]
[EventDate "2024.04.14"]
[EventType "swiss"]
[EventCountry "FRA"]
[SourceTitle "playchess.com"]
[Source "ChessBase"]
[SourceQuality "1"]
[TimeControl "5400+30"]

{[%evp 9,372,12,37,36,44,35,25,0,33,9,29,33,31,29,48,33,44,25,41,29,34,-10,-21,-9,-9,-57,-14,-24,-20,-24,-15,-31,-28,-137,-145,-130,-127,-138,-146,-150,-129,-150,-149,-162,-138,-138,-125,-114,-116,-122,-110,-107,-92,-136,-129,-130,-139,-137,-137,-144,-139,-337,-322,-344,-206,-329,-206,-359,-359,-356,-354,-297,-166,-166,-79,-79,-14,-14,-14,-14,-14,-14,-8,-8,-8,-8,0,-8,-8,-8,-8,-12,-8,-8,-8,-8,-14,-14,-8,-8,0,-8,0,-12,-12,-14,-14,-14,-14,-14,-14,-14,-14,-14,-14,-14,-14,-14,-14,-14,-14,-64,-14,-14,0,-14,-14,-14,-14,-14,-14,-14,-12,-12,0,-14,0,-14,-14,-14,-14,-14,-14,-14,-14,-14,-14,-14,-14,-14,-14,-14,-14,-14,-14,-14,-14,-14,-14,-14,-14,-14,-14,-14,-14,-14,-8,-14,0,0,0,-8,-8,-14,0,-14,-14,-14,-14,-14,-14,-14,-14,-14,-8,-8,-8,-14,0,0,0,-14,-14,-14,-14,-14,0,0,0,0,0,0,0,0,0,0,0,0,0,0,0,0,0,0,0,0,0,0,0,0,0,0,0,0,0,-20,-20,-20,-20,-20,-20,-20,-20,-20,-20,-20,-20,-20,-2,-2,0,-20,-20,-20,0,-20,-20,-20,-20,-20,-20,-20,-20,-20,-13,-20,-20,-20,-2,-2,-2,-2,-2,-2,-2,-2,0,0,0,0,0,0,0,0,0,0,0,0,0,0,0,0,0,0,0,0,0,0,0,0,0,0,0,0,0,0,0,0,0,0,0,0,0,0,0,0,0,0,0,0,0,0,0,0,0,0,0,0,0,0,0,0,0,0,0,0,0,0,0,0,0,0,0,0,0,0,0,0,0,0,0,0,0,0,-52,0,0,0,0,0,0,0,0,0,0,0,0,0,0,0,0,0,0,0,0]} 1. e4 {[%emt 0:00:47]} c5 {[%emt 0:00:20]} 2. Nf3 {[%emt 0:01:02]} d6 {[%emt 0:00:12]} 3. Bb5+ {[%emt 0:00:11]} Nd7 {[%emt 0:00:34]} 4. a4 {[%emt 0:00:07][%cal Ba2a4,Ba4a5][%mdl 32]} Ngf6 {[%emt 0:02:45]} 5. Nc3 {[%emt 0:02:13]} g6 {[%emt 0:01:29]} 6. a5 {[%emt 0:00:25]} a6 {[%emt 0:01:01]} 7. Be2 {[%emt 0:00:03]} Bg7 {[%emt 0:01:30]} 8. d3 {[%emt 0:00:15] White has an edge.} O-O {[%emt 0:05:07]} 9. Nd2 {[%emt 0:00:05][%cal Bf3d2,Bd2b3,Bb3a5][%mdl 32]} b5 {[%emt 0:04:04]} 10. axb6 {[%emt 0:00:31]} Nxb6 {[%emt 0:00:33]} 11. Nb3 {[%emt 0:01:09]} Qc7 {[%emt 0:04:08]} 12. Na5 {[%emt 0:01:12]} Bd7 {[%emt 0:10:34]} 13. Bd2 {[%emt 0:04:15]} Rab8 {[%emt 0:07:21]} 14. Qc1 {[%emt 0:05:19]} d5 {[%emt 0:57:52]} 15. exd5 {[%emt 0:07:02]} Nfxd5 {[%emt 0:00:00]} 16. Nxd5 {[%emt 0:05:16]} Nxd5 {[%emt 0:00:00]} 17. c3 {[%emt 0:06:30]} (17. Nc4 $11 {was preferrable.}) 17... e5 {[%emt 0:00:00][%cal Be7e5,Be5f4][%mdl 32]} 18. O-O {[%emt 0:02:50]} Nf4 {[%emt 0:00:00]} 19. Bxf4 {[%emt 0:01:03]} exf4 {[%emt 0:00:00]} 20. Nc4 {[%emt 0:07:19]} Bc6 {[%emt 0:00:00]} 21. Rxa6 {[%emt 0:02:15] [#]} (21. Re1 $11) 21... Bxg2 $1 $17 {[%emt 0:00:00][%mdl 512]} 22. Kxg2 {[%emt 0:04:44]} Qb7+ {[%emt 0:00:00]} 23. Bf3 {[%emt 0:00:04]} Qxa6 {[%emt 0:00:00]} 24. Qxf4 {[%emt 0:00:07]} Rbd8 {[%emt 0:00:00]} 25. Rd1 {[%emt 0:10:19]} Rfe8 {[%emt 0:00:00]} 26. Ne3 {[%emt 0:01:25]} Qb6 {[%emt 0:00:00]} (26... Rxd3 27. Bd5 Rf8 28. Bc4 Qb7+ 29. Bd5 Rxd5 (29... Qxb2 $2 30. Rxd3 Bxc3 31. Nc4 $18) 30. Rxd5 $15) 27. Bd5 {[%emt 0:02:11]} Qf6 {[%emt 0:00:00]} (27... Qxb2 $6 28. Nc4 (28. Qxf7+ $2 Kh8 $19) 28... Qe2 (28... Qxc3 $2 29. Qxf7+ Kh8 30. Nd6 $18) 29. Bxf7+ Kh8 30. Rd2 $11) 28. Qxf6 {[%emt 0:05:26]} Bxf6 {[%emt 0:00:00]} 29. Bc4 {[%emt 0:01:56]} Rd6 {[%emt 0:02:16]} 30. Ra1 {[%emt 0:00:59]} Bg5 {[%emt 0:01:17]} 31. Ra7 {[%emt 0:04:16] [#]} Re7 {[%emt 0:00:36]} 32. Rxe7 {[%emt 0:00:32]} Bxe7 {[%emt 0:00:01][%mdl 4096] Endgame. KRB-KBN} 33. Nd5 {[%emt 0:00:23]} Bf6 {[%emt 0:00:24]} 34. b4 {[%emt 0:00:32]} cxb4 {[%emt 0:00:23]} 35. Nxf6+ $2 {[%emt 0:02:10]} (35. cxb4 $17 Bd4 36. h4) 35... Rxf6 $19 {[%emt 0:00:01]} 36. cxb4 $17 {[%emt 0:00:08] KR-KB} Kf8 {[%emt 0:01:17]} (36... g5 $142 {Hoping for ...Kg7.} 37. b5 Kf8) 37. b5 {[%emt 0:03:08]} (37. h4 $142) 37... Ke7 {[%emt 0:00:56] aiming for ...g5.} 38. Kg3 $2 {[%emt 0:11:41]} (38. h4 {only move.}) 38... g5 $19 {[%emt 0:00:27]} 39. Bd5 {[%emt 0:02:59]} Kd6 {[%emt 0:03:27]} 40. Be4 {[%emt 0:01:45]} Ke5 {[%emt 0:01:06]} (40... h6 $142 {And now ...Rf4 would win.} 41. b6 Rf4) 41. Bxh7 {[%emt 0:01:43] [#]} Rb6 {[%emt 0:00:07]} (41... Rd6 $1 $19 {is more deadly. ...f5 is the strong threat.} 42. Kg4 f6) 42. Kg4 $17 {[%emt 0:01:10]} f6 {[%emt 0:00:58]} ({But not} 42... Rxb5 43. Kxg5 f6+ 44. Kg4) (42... Kf6 $17 43. h4 Rxb5 44. hxg5+ Rxg5+ 45. Kf4 Rh5) 43. h4 $1 $11 {[%emt 0:00:40]} gxh4 {[%emt 0:00:12]} ({Don't do} 43... Rxb5 44. hxg5 Rb4+ 45. Kh5 fxg5 46. Kxg5 $15) 44. f4+ $1 {[%emt 0:00:15]} Kd4 {[%emt 0:00:23]} 45. Kxh4 {[%emt 0:01:30]} Rxb5 {[%emt 0:00:03] Threatens to win with ...Rb7.} 46. Kg4 {[%emt 0:00:29]} Ra5 {[%emt 0:01:01]} 47. Bg6 {[%emt 0:00:46]} Rb5 {[%emt 0:00:26]} 48. Bh7 {[%emt 0:00:10]} Rd5 {[%emt 0:00:47]} 49. Be4 {[%emt 0:01:36]} Rd6 {[%emt 0:00:37]} 50. Bg6 {[%emt 0:00:19]} Ke3 {[%emt 0:00:17]} 51. Be4 {[%emt 0:00:28]} Rb6 {[%emt 0:00:32]} 52. Bg6 {[%emt 0:00:21]} Rb4 {[%emt 0:00:08]} 53. Be4 {[%emt 0:00:28]} Rd4 {[%emt 0:00:11]} 54. Kf5 {[%emt 0:00:20]} Rd6 {[%emt 0:00:01]} 55. Kg4 {[%emt 0:00:07]} Kd4 {[%emt 0:00:18]} 56. Bg6 {[%emt 0:00:11]} Kd5 {[%emt 0:00:31]} 57. Be4+ {[%emt 0:01:00]} Ke6 {[%emt 0:00:12]} 58. Bf5+ {[%emt 0:00:22]} Ke7 {[%emt 0:00:18]} 59. Be4 {[%emt 0:01:19]} Ra6 {[%emt 0:00:05]} 60. Bd5 {[%emt 0:01:05]} Ra1 {[%emt 0:00:26]} 61. Bc4 {[%emt 0:00:28]} Ra3 {[%emt 0:00:58]} 62. Kf5 {[%emt 0:00:12]} Ra5+ {[%emt 0:00:06]} 63. Kg4 {[%emt 0:00:33]} Ra1 {[%emt 0:00:51]} 64. Kf5 {[%emt 0:00:09]} Ra3 {[%emt 0:00:03]} 65. Kg4 {[%emt 0:00:09]} (65. Kg6 $1 $11) 65... Ra5 {[%emt 0:00:10]} (65... Kf8 $1 $15) 66. Bb3 {[%emt 0:00:29]} Ra1 {[%emt 0:00:36]} 67. Bc4 {[%emt 0:00:21]} Rh1 {[%emt 0:00:32]} 68. Kf5 {[%emt 0:00:22]} Rh5+ {[%emt 0:00:18]} 69. Kg4 {[%emt 0:00:11]} Rh6 {[%emt 0:00:03]} 70. Kf5 {[%emt 0:00:20]} Kd6 {[%emt 0:00:31]} 71. Bf7 {[%emt 0:00:18]} Ke7 {[%emt 0:00:09]} 72. Bc4 {[%emt 0:00:01]} Rh5+ {[%emt 0:00:15]} 73. Kg4 {[%emt 0:00:01]} Rc5 {[%emt 0:00:01]} 74. Bb3 {[%emt 0:00:27]} Kf8 {[%emt 0:00:19]} 75. d4 {[%emt 0:01:38]} Rb5 {[%emt 0:02:58]} 76. Be6 {[%emt 0:00:14]} Ke7 {[%emt 0:02:41]} 77. d5 {[%emt 0:00:13]} Rb1 {[%emt 0:00:24]} 78. Kf5 {[%emt 0:00:42]} Rd1 {[%emt 0:00:33]} 79. Bg8 $1 {[%emt 0:00:17]} Rd2 {[%emt 0:00:03]} 80. Be6 {[%emt 0:00:12]} Rd4 {[%emt 0:00:21]} 81. Bg8 $1 {[%emt 0:00:08]} Kf8 {[%emt 0:00:17]} 82. Be6 {[%emt 0:00:24]} Kg7 {[%emt 0:00:01]} 83. Kg4 $1 {[%emt 0:00:19]} Kg6 {[%emt 0:00:01]} 84. Bf5+ $1 {[%emt 0:00:16]} Kf7 {[%emt 0:00:11]} 85. Be6+ {[%emt 0:00:01]} Ke7 {[%emt 0:00:01]} 86. Kf5 {[%emt 0:00:14]} Rd2 {[%emt 0:00:17]} 87. Bg8 {[%emt 0:00:08]} Rf2 {[%emt 0:00:14]} 88. Be6 {[%emt 0:00:50]} Kd6 {[%emt 0:00:07]} 89. Bf7 {[%emt 0:00:30]} Rf3 {[%emt 0:01:09]} 90. Be6 {[%emt 0:00:16]} Ke7 {[%emt 0:00:11]} 91. Bg8 {[%emt 0:00:07]} Rf1 {[%emt 0:00:08]} 92. Be6 {[%emt 0:00:19]} Rh1 {[%emt 0:01:30]} 93. Kg6 {[%emt 0:00:14]} Rh4 {[%emt 0:00:56]} 94. Kf5 {[%emt 0:00:21]} Rh6 {[%emt 0:01:11]} 95. Bg8 {[%emt 0:00:50]} ({Don't go for} 95. d6+ $2 Kxd6 96. Bb3 Ke7 $19) 95... Rh8 {[%emt 0:01:52]} 96. Be6 $1 {[%emt 0:00:11]} Rd8 {[%emt 0:00:05]} 97. Kg6 {[%emt 0:00:23]} Rf8 {[%emt 0:00:11]} 98. Kf5 {[%emt 0:00:20]} Kd6 {[%emt 0:00:59]} 99. Kg6 {[%emt 0:00:02]} Ke7 {[%emt 0:00:37]} 100. Kf5 {[%emt 0:00:08]} Rh8 {[%emt 0:00:29]} 101. Kg6 {[%emt 0:00:18]} Rh2 {[%emt 0:00:24]} 102. Kf5 {[%emt 0:00:09]} Rg2 {[%emt 0:00:14]} 103. d6+ {[%emt 0:00:23]} Kxd6 {[%emt 0:00:05]} 104. Kxf6 {[%emt 0:00:05]} Rh2 {[%emt 0:00:16]} 105. f5 {[%emt 0:00:23]} Rh6+ {[%emt 0:00:26]} 106. Kg7 {[%emt 0:00:16]} Rh4 {[%emt 0:00:33]} 107. Kf6 {[%emt 0:00:17]} Rf4 {[%emt 0:00:39]} 108. Bf7 {[%emt 0:00:19]} Rf3 {[%emt 0:00:29]} 109. Be6 {[%emt 0:00:06]} Rf2 {[%emt 0:00:01]} 110. Bf7 {[%emt 0:00:08]} Kd7 {[%emt 0:00:08]} 111. Bg6 {[%emt 0:00:34]} Kd6 {[%emt 0:00:36]} 112. Bf7 {[%emt 0:00:03]} Rb2 {[%emt 0:00:15]} 113. Be6 {[%emt 0:00:09]} Rb6 {[%emt 0:00:27]} 114. Bf7 {[%emt 0:00:12]} Kc5+ {[%emt 0:01:25]} 115. Be6 {[%emt 0:00:16]} Kd4 {[%emt 0:00:21]} 116. Kg7 {[%emt 0:02:20]} Ke5 {[%emt 0:00:09]} 117. Kh8 {[%emt 0:00:21]} Kf6 {[%emt 0:00:10]} 118. Bg8 {[%emt 0:00:26]} Rb8 {[%emt 0:00:59]} 119. Kh7 {[%emt 0:00:07]} Rb4 {[%emt 0:01:13][%cal Rb4h4]} 120. Kh8 {[%emt 0:00:20]} Rh4+ {[%emt 0:00:46]} 121. Bh7 {[%emt 0:00:03]} Rh2 {[%emt 0:00:35]} 122. Kg8 {[%emt 0:00:01]} Rb2 {[%emt 0:00:26][%cal Rb2b8]} 123. Kh8 {[%emt 0:00:07]} Kf7 {[%emt 0:00:21]} 124. Bg8+ {[%emt 0:00:14]} Kf6 {[%emt 0:00:33]} 125. Bh7 $1 {[%emt 0:00:09]} Rb3 {[%emt 0:00:21]} 126. Bg8 {[%emt 0:00:33]} Rb8 {[%emt 0:00:39]} 127. Kh7 {[%emt 0:00:09]} Rb5 {[%emt 0:00:50]} 128. Kh8 {[%emt 0:00:44]} Rb7 {[%emt 0:00:32]} 129. Bh7 {[%emt 0:00:19]} Rg7 {[%emt 0:00:08]} 130. Bg8 {[%emt 0:00:26]} Rg3 {[%emt 0:00:16]} 131. Bh7 {[%emt 0:00:43]} Rg1 {[%emt 0:00:27]} 132. Bg8 {[%emt 0:00:20]} Rh1+ {[%emt 0:00:33]} 133. Bh7 {[%emt 0:00:02]} Kf7 {[%emt 0:00:09]} 134. f6 {[%emt 0:00:09]} Kf8 {[%emt 0:01:15]} 135. f7 {[%emt 0:00:06]} Ra1 {[%emt 0:00:09]} 136. Bg8 {[%emt 0:00:17]} Rc1 {[%emt 0:00:17]} (136... Rf1 {feels hotter.} 137. Kh7 Rh1+ 138. Kg6 Rh4) 137. Bh7 {[%emt 0:00:14]} (137. Kh7 {is interesting.} Rc6 138. Kh8 Rc8 139. Kh7) 137... Kxf7 {[%emt 0:00:05]} (137... Rc6 {with more complications.} 138. Bf5 Rf6 139. Be4 Re6) 138. Bg8+ {[%emt 0:00:52]} Kf6 {[%emt 0:01:20]} 139. Bh7 {[%emt 0:00:23]} Rh1 {[%emt 0:00:06]} 140. Kg8 {[%emt 0:00:05]} Rh2 {[%emt 0:00:26]} 141. Kh8 {[%emt 0:00:15]} Rb2 {[%emt 0:00:04]} 142. Bg8 {[%emt 0:00:23]} Kg6 {[%emt 0:00:05]} 143. Bh7+ {[%emt 0:00:10]} Kh6 {[%emt 0:00:04]} 144. Bg8 {[%emt 0:00:13]} Rb7 {[%emt 0:00:41]} 145. Bd5 {[%emt 0:00:22]} Rd7 {[%emt 0:00:07]} 146. Bc4 {[%emt 0:00:18]} Kg6 {[%emt 0:00:13]} 147. Bg8 {[%emt 0:00:17]} Rc7 {[%emt 0:00:18]} 148. Bd5 {[%emt 0:00:35]} Rh7+ {[%emt 0:00:26]} 149. Kg8 {[%emt 0:00:17]} Re7 {[%emt 0:00:22][%cal Re7e8]} 150. Kh8 {[%emt 0:00:38]} Re5 {[%emt 0:00:05]} 151. Bc4 {[%emt 0:00:29]} Re3 {[%emt 0:00:24]} 152. Bd5 {[%emt 0:00:42]} Re1 {[%emt 0:00:26]} 153. Bb3 {[%emt 0:01:31]} Rc1 {[%emt 0:00:09]} 154. Bd5 {[%emt 0:00:28]} Rc7 {[%emt 0:00:51]} 155. Be4+ {[%emt 0:00:53]} Kf7 {[%emt 0:00:19]} 156. Bd3 {[%emt 0:00:42]} Rc8+ {[%emt 0:00:13]} 157. Kh7 {[%emt 0:00:08]} Rc3 {[%emt 0:00:10]} 158. Bg6+ {[%emt 0:00:55]} Kf6 {[%emt 0:00:01] ( -> ...Rh3+)} 159. Be4 {[%emt 0:01:19]} Rc8 {[%emt 0:00:23]} 160. Bd3 {[%emt 0:00:45]} Rc3 {[%emt 0:00:32]} 161. Be4 {[%emt 0:00:31]} Rc7+ {[%emt 0:00:17]} 162. Kh8 {[%emt 0:00:57]} Rg7 {[%emt 0:00:39]} 163. Bd3 {[%emt 0:00:19]} Kf7 {[%emt 0:00:12]} 164. Bc4+ {[%emt 0:00:21]} Kf8 {[%emt 0:00:09]} 165. Bd3 {[%emt 0:00:14]} Rg3 {[%emt 0:00:10]} 166. Bc2 {[%emt 0:00:11]} Kf7 {[%emt 0:00:11]} 167. Be4 {[%emt 0:00:58]} Rg5 {[%emt 0:00:28]} 168. Bd3 {[%emt 0:00:16]} Rg4 {[%emt 0:00:04]} 169. Bc2 {[%emt 0:00:24]} Rg8+ {[%emt 0:00:22]} 170. Kh7 {[%emt 0:00:03]} Rg3 {[%emt 0:00:05][%cal Rg3h3]} 171. Kh8 {[%emt 0:00:30]} Rc3 {[%emt 0:00:23]} 172. Be4 {[%emt 0:01:03]} Rc8+ {[%emt 0:00:14]} 173. Kh7 {[%emt 0:00:11]} Rc5 {[%emt 0:00:00][%cal Rc5h5]} 174. Kh8 {[%emt 0:00:31]} Rg5 {[%emt 0:00:00]} 175. Bc2 {[%emt 0:00:22]} Rg3 {[%emt 0:00:00]} 176. Be4 {[%emt 0:00:57]} Rg8+ {[%emt 0:00:00]} 177. Kh7 {[%emt 0:00:07]} Rg4 {[%emt 0:00:00][%cal Rg4h4] The position is equal.} 178. Bd5+ {[%emt 0:00:37]} Kf6 {[%emt 0:00:00]} 179. Kh8 {[%emt 0:00:53]} Kg6 {[%emt 0:00:00]} 180. Bb3 {[%emt 0:00:46]} Kh6 {[%emt 0:00:00]} 181. Bd5 {[%emt 0:00:26]} Rd4 {[%emt 0:00:00]} 182. Bb3 {[%emt 0:00:08]} Rd8+ {[%emt 0:00:00]} 183. Bg8 {[%emt 0:00:02]} Rd7 {[%emt 0:00:00]} 184. Bb3 {[%emt 0:00:22]} Rc7 {[%emt 0:00:00]} 185. Bd5 {[%emt 0:00:16]} Rh7+ {[%emt 0:00:00]} 186. Kg8 {[%emt 0:00:03]} Rd7 {[%emt 0:00:00] White happily takes the draw.   Weighted Error Value: White=0.19 (very precise) /Black=0.19 (very precise) .  Loses game:     	White=1     	---        Mistake:       	White=5     	Black=5      Inaccurate:     	White=2     	Black=3      OK:         	White=62    	Black=45     Best:        	White=12    	Black=2      Strong:       	White=8     	---} 1/2-1/2